bitfinex/quotes_BTCUSD_20250709
["timestamp","ask_amount","ask_price","bid_price","bid_amount"]
[1752067019497,1.21832238,109870.0,109860.0,0.40434276]
[1752067019887,1.22032238,109870.0,109860.0,0.42254749]
[1752067020078,1.22032238,109870.0,109860.0,0.43951193]
[1752067020291,1.22032238,109870.0,109860.0,0.4213072]
[1752067020526,1.22032238,109870.0,109860.0,0.43040993]
[1752067020768,1.2113373,109870.0,109860.0,0.43040993]
[1752067020964,1.2113373,109870.0,109860.0,0.42130752]
[1752067021163,1.2113373,109870.0,109860.0,0.38057713]
[1752067021318,1.2113373,109870.0,109860.0,0.38967954]
[1752067021527,1.2113373,109870.0,109860.0,0.39878186]
[1752067021931,1.2113373,109870.0,109860.0,0.38057713]
[1752067022134,1.2113373,109870.0,109860.0,0.38967954]
[1752067022549,1.2113373,109870.0,109860.0,0.39878186]
[1752067022751,1.2113373,109870.0,109860.0,0.38057713]
[1752067022953,1.2113373,109870.0,109860.0,0.38967954]
[1752067023144,1.2113373,109870.0,109860.0,0.39878186]
[1752067023655,1.2113373,109870.0,109860.0,0.38057713]
[1752067023901,1.2113373,109870.0,109860.0,0.38967954]
[1752067024304,1.49019428,109870.0,109860.0,0.22971464]
[1752067024518,1.51542501,109870.0,109860.0,0.15868476]
[1752067024727,1.97836194,109870.0,109860.0,0.01696476]
[1752067024941,1.97636194,109870.0,109860.0,0.01696476]
[1752067025940,0.2073522,109860.0,109850.0,0.14172]
[1752067026142,0.191187,109840.0,109830.0,0.11008232]
[1752067026382,1.09348398,109840.0,109830.0,0.04077695]
[1752067026586,1.12548398,109840.0,109830.0,4.656e-05]
[1752067027235,1.10968398,109840.0,109830.0,4.656e-05]
[1752067028342,1.09348398,109840.0,109830.0,0.00304656]
[1752067028850,0.531187,109840.0,109830.0,0.2024224]
[1752067029095,0.69111454,109840.0,109830.0,0.23055578]
[1752067029271,0.70021794,109840.0,109830.0,0.23966042]
[1752067029474,0.69111504,109840.0,109830.0,0.22445105]
[1752067029674,0.69111504,109840.0,109830.0,0.23355586]
[1752067029893,0.69111504,109840.0,109830.0,0.23055586]
[1752067030030,0.69111504,109840.0,109830.0,0.2396605]
[1752067030237,0.69111504,109840.0,109830.0,0.23055586]
[1752067030441,0.69111504,109840.0,109830.0,0.23966059]
[1752067030644,0.69111504,109840.0,109830.0,0.24876523]
[1752067030976,0.69111504,109840.0,109830.0,0.23966059]
[1752067031180,0.69111504,109840.0,109830.0,0.23966042]
[1752067031407,0.69111504,109840.0,109830.0,0.23055586]
[1752067031705,0.69111504,109840.0,109830.0,0.22145105]
[1752067031907,0.68201123,109840.0,109830.0,0.21234616]
[1752067032112,0.68197123,109840.0,109830.0,0.21234616]
[1752067032323,0.67286717,109840.0,109830.0,0.19714616]
[1752067032804,0.67286717,109840.0,109830.0,0.01504656]
[1752067033010,0.67286717,109840.0,109830.0,0.19714616]
[1752067034161,0.96456153,109840.0,109830.0,4.656e-05]
[1752067034413,0.99536153,109840.0,109830.0,0.28440656]
[1752067035292,0.99536153,109840.0,109830.0,0.28340656]
[1752067036832,0.99536153,109840.0,109830.0,0.28540656]
[1752067037079,1.08679846,109840.0,109830.0,0.28540656]
[1752067038297,0.53118717,109840.0,109830.0,0.28540656]
[1752067040022,0.53118717,109840.0,109830.0,0.30236141]
[1752067041249,0.81004415,109840.0,109830.0,0.30236141]
[1752067041448,0.53118717,109840.0,109830.0,0.30236141]
[1752067041659,0.81004415,109840.0,109830.0,0.30236141]
[1752067041871,0.90148108,109840.0,109830.0,0.30236141]
[1752067042223,0.81004415,109840.0,109830.0,0.30236141]
[1752067042621,0.81004415,109840.0,109830.0,0.30235507]
[1752067044410,0.53118717,109840.0,109830.0,0.30235507]
[1752067045037,0.53118717,109840.0,109830.0,0.48445467]
[1752067045213,0.53118717,109840.0,109830.0,0.49945467]
[1752067045534,0.36731161,109840.0,109830.0,0.82172591]
[1752067045668,0.01820755,109840.0,109830.0,0.82172591]
[1752067045869,0.01820755,109840.0,109830.0,0.83083039]
[1752067046060,0.02731161,109840.0,109830.0,0.82172599]
[1752067046695,0.02731161,109840.0,109830.0,0.81972608]
[1752067046893,0.01820697,109840.0,109830.0,0.93237205]
[1752067047547,0.03641435,109840.0,109830.0,0.93237205]
[1752067047833,0.01820697,109840.0,109830.0,0.92937205]
[1752067048213,0.0273107,109840.0,109830.0,0.93237205]
[1752067048617,0.02731062,109840.0,109830.0,0.93537205]
[1752067049225,0.03641435,109840.0,109830.0,0.93537205]
[1752067049603,0.2002725,109850.0,109840.0,0.206987]
[1752067049810,0.54937582,109850.0,109840.0,0.23963568]
[1752067050207,0.54027292,109850.0,109840.0,0.23053153]
[1752067050740,0.53116977,109850.0,109840.0,0.21483153]
[1752067050942,0.53116977,109850.0,109840.0,0.21583153]
[1752067051153,0.53116977,109850.0,109840.0,0.21783153]
[1752067051374,0.53116977,109850.0,109840.0,0.03574851]
[1752067051727,0.53116977,109850.0,109840.0,0.01994851]
[1752067052097,0.53116977,109850.0,109840.0,0.20203153]
[1752067052226,0.53116977,109850.0,109840.0,0.01994851]
[1752067052818,0.53116977,109850.0,109840.0,0.20203153]
[1752067053027,0.54937541,109850.0,109840.0,0.24273551]
[1752067053233,0.55847864,109850.0,109840.0,0.25183957]
[1752067053434,0.55847864,109850.0,109840.0,0.24273559]
[1752067053868,0.55847864,109850.0,109840.0,0.23363153]
[1752067054079,0.54937582,109850.0,109840.0,0.23363153]
[1752067054317,0.54937582,109850.0,109840.0,0.25183957]
[1752067054318,0.35820614,109850.0,109840.0,0.25183957]
[1752067054499,0.54027259,109850.0,109840.0,0.28340604]
[1752067054985,0.54027259,109850.0,109840.0,0.29251002]
[1752067055394,0.54027259,109850.0,109840.0,0.30161392]
[1752067055617,0.54937591,109850.0,109840.0,0.31071773]
[1752067055992,0.36730946,109850.0,109840.0,0.31071773]
[1752067056348,0.54937591,109850.0,109840.0,0.27430198]
[1752067056570,0.54937591,109850.0,109840.0,0.29251019]
[1752067057235,0.54937591,109850.0,109840.0,0.2925322]
[1752067057457,0.54937591,109850.0,109840.0,0.30163618]
[1752067058837,0.54937591,109850.0,109840.0,0.2925322]
[1752067059034,0.54937591,109850.0,109840.0,0.28342814]
[1752067059240,0.54937591,109850.0,109840.0,0.23365354]
[1752067059664,0.54937591,109850.0,109840.0,0.24275769]
[1752067060020,0.54937591,109850.0,109840.0,0.23365354]
[1752067060243,0.54937591,109850.0,109840.0,0.24275769]
[1752067062153,0.54027292,109850.0,109840.0,0.23365354]
[1752067062525,0.54027292,109850.0,109840.0,0.21845354]
[1752067064360,0.53116977,109850.0,109840.0,0.21845354]
[1752067067305,0.53116977,109850.0,109840.0,0.21845468]
[1752067068105,0.53116977,109850.0,109840.0,0.21845345]
[1752067069359,0.53116977,109850.0,109840.0,0.20205345]
[1752067070222,0.53116977,109850.0,109840.0,0.18508302]
[1752067071278,0.53116977,109850.0,109840.0,0.22575347]
[1752067074840,0.81002675,109850.0,109840.0,0.18511045]
[1752067075023,0.93286368,109850.0,109840.0,0.003]
[1752067075337,0.56256977,109850.0,109840.0,0.14444]
[1752067075539,0.84142675,109850.0,109840.0,0.14444]
[1752067075743,0.84142675,109850.0,109840.0,0.003]
[1752067075915,0.84142675,109850.0,109840.0,0.14244]
[1752067076423,0.53116977,109850.0,109840.0,0.15714]
[1752067076572,0.53116977,109850.0,109840.0,0.18211045]
[1752067076975,0.53116977,109850.0,109840.0,0.1991197]
[1752067077188,0.53116977,109850.0,109840.0,0.19927138]
[1752067078364,0.53116977,109850.0,109840.0,0.20127138]
[1752067078569,0.53116977,109850.0,109840.0,0.20227138]
[1752067079610,0.54726977,109850.0,109840.0,0.20227138]
[1752067081381,0.54726977,109850.0,109840.0,0.20223138]
[1752067081789,0.54726977,109850.0,109840.0,0.06083138]
[1752067082005,0.54726977,109850.0,109840.0,0.3843144]
[1752067082266,0.53116977,109850.0,109840.0,0.20223138]
[1752067082461,0.53116977,109850.0,109840.0,0.06083138]
[1752067082752,0.53116977,109850.0,109840.0,0.20223138]
[1752067082989,0.53116977,109850.0,109840.0,0.3843144]
[1752067083271,0.53116977,109850.0,109840.0,0.20223138]
[1752067084852,0.53116977,109850.0,109840.0,0.3843144]
[1752067085187,0.52206645,109850.0,109840.0,0.3843144]
[1752067086348,0.52206645,109850.0,109840.0,0.20223138]
[1752067086562,0.53776645,109850.0,109840.0,0.20223138]
[1752067088257,0.53776645,109850.0,109840.0,0.20223991]
[1752067090535,0.67912645,109850.0,109840.0,0.20223991]
[1752067091847,0.67912645,109850.0,109840.0,0.20215991]
[1752067092059,0.95798343,109850.0,109840.0,0.20215991]
[1752067092242,0.95798343,109850.0,109840.0,0.20217967]
[1752067092595,0.67912645,109850.0,109840.0,0.20217967]
[1752067092829,0.95798343,109850.0,109840.0,0.20217967]
[1752067095698,0.97418343,109850.0,109840.0,0.20217967]
[1752067095918,0.97418343,109850.0,109840.0,0.20218095]
[1752067096101,0.66342645,109850.0,109840.0,0.20218095]
[1752067096327,0.67252968,109850.0,109840.0,0.23358095]
[1752067097117,0.67252968,109850.0,109840.0,0.21828095]
[1752067097467,0.67252968,109850.0,109840.0,0.20218095]
[1752067098618,0.95138666,109850.0,109840.0,0.20214095]
[1752067098813,0.98178666,109850.0,109840.0,0.16129906]
[1752067100282,0.96646356,109850.0,109840.0,0.16129906]
[1752067100481,0.96646356,109850.0,109840.0,0.20214095]
[1752067100662,0.96646356,109850.0,109840.0,0.06086095]
[1752067102489,0.98246356,109850.0,109840.0,0.06086095]
[1752067102672,0.98246356,109850.0,109840.0,0.02001906]
[1752067103906,0.98246356,109850.0,109840.0,0.01801906]
[1752067104110,0.98246356,109850.0,109840.0,0.01701906]
[1752067104546,0.84110356,109850.0,109840.0,0.01701906]
[1752067104767,0.98234356,109850.0,109840.0,0.01701906]
[1752067104979,1.16521742,109850.0,109840.0,0.01701906]
[1752067105971,0.223387,109840.0,109830.0,4.656e-05]
[1752067106167,0.64348398,109840.0,109830.0,0.01706905]
[1752067106751,0.73492091,109840.0,109830.0,0.01706905]
[1752067106959,0.73492091,109840.0,109830.0,0.02345037]
[1752067107159,0.73492091,109840.0,109830.0,0.02445037]
[1752067107987,0.73492091,109840.0,109830.0,0.02645037]
[1752067108997,0.73492091,109840.0,109830.0,0.02643825]
[1752067114718,1.07492091,109840.0,109830.0,0.02643825]
[1752067115352,1.07492091,109840.0,109830.0,0.00942788]
[1752067116401,1.10817,109840.0,109830.0,0.00942788]
[1752067116776,1.07492091,109840.0,109830.0,0.00942788]
[1752067117617,1.07492091,109840.0,109830.0,0.00742129]
[1752067118144,1.07492091,109840.0,109830.0,0.00642129]
[1752067119129,0.20032722,109820.0,109810.0,0.11022105]
[1752067119336,0.6203842,109820.0,109810.0,0.04086225]
[1752067119743,0.6203842,109820.0,109810.0,0.05696225]
[1752067120120,0.70223409,109820.0,109810.0,0.04086225]
[1752067120329,0.64588063,109820.0,109810.0,0.04086225]
[1752067120532,0.64588063,109820.0,109810.0,4.657e-05]
[1752067120742,0.64588063,109820.0,109810.0,0.00304657]
[1752067121385,0.66218063,109820.0,109810.0,0.00604657]
[1752067122265,0.64588063,109820.0,109810.0,0.00604657]
[1752067122506,0.71595965,109820.0,109810.0,0.00604657]
[1752067122724,0.62968063,109820.0,109810.0,0.00604657]
[1752067124313,0.65757115,109820.0,109810.0,0.00604657]
[1752067125363,0.23751417,109820.0,109810.0,0.21857934]
[1752067125585,0.35078365,109820.0,109810.0,0.26850165]
[1752067126224,0.35078365,109820.0,109810.0,0.2776082]
[1752067126695,0.34167826,109820.0,109810.0,0.07726225]
[1752067126920,0.34167826,109820.0,109810.0,0.25939502]
[1752067127605,0.19122183,109820.0,109810.0,0.26850165]
[1752067127840,0.35055302,109820.0,109810.0,0.56557148]
[1752067128317,0.35055302,109820.0,109810.0,0.2867145]
[1752067128525,0.34144763,109820.0,109810.0,0.26850165]
[1752067129406,0.34144763,109820.0,109810.0,0.2776082]
[1752067129610,0.34144763,109820.0,109810.0,0.28671458]
[1752067130072,0.34144763,109820.0,109810.0,0.29582088]
[1752067130512,0.34144763,109820.0,109810.0,0.28671458]
[1752067131248,0.00930008,109830.0,109820.0,0.21431619]
[1752067131452,0.35963819,109830.0,109820.0,0.25511655]
[1752067131668,0.21851819,109830.0,109820.0,0.26422211]
[1752067132086,0.35963819,109830.0,109820.0,0.26422211]
[1752067132300,0.35963819,109830.0,109820.0,0.27532758]
[1752067132506,0.35963819,109830.0,109820.0,0.28543297]
[1752067132705,0.35963819,109830.0,109820.0,0.28543322]
[1752067133200,0.35963819,109830.0,109820.0,0.28461522]
[1752067133328,0.21851819,109830.0,109820.0,0.28461522]
[1752067133546,0.35959819,109830.0,109820.0,0.28461522]
[1752067133989,0.35959819,109830.0,109820.0,0.27550975]
[1752067134370,0.1774985,109830.0,109820.0,0.33892051]
[1752067134743,0.36870308,109830.0,109820.0,0.32981512]
[1752067134995,0.35959868,109830.0,109820.0,0.33892059]
[1752067135795,0.00910506,109820.0,109810.0,0.55219282]
[1752067135999,0.00910506,109820.0,109810.0,0.69350668]
[1752067136818,0.00910506,109820.0,109810.0,0.70261257]
[1752067137019,0.01821028,109820.0,109810.0,0.71171871]
[1752067137220,0.01821028,109820.0,109810.0,0.71371871]
[1752067138868,0.01821028,109820.0,109810.0,0.74561871]
[1752067139733,0.02731567,109820.0,109810.0,0.74761871]
[1752067140095,0.03642123,109820.0,109810.0,0.74761871]
[1752067140696,0.03642123,109820.0,109810.0,0.46876173]
[1752067141010,0.03642114,109820.0,109810.0,0.46876173]
[1752067141211,0.04552678,109820.0,109810.0,0.46876173]
[1752067141430,0.20943302,109820.0,109810.0,0.46876271]
[1752067141569,0.47007889,109820.0,109810.0,0.14504]
[1752067142460,0.48667889,109820.0,109810.0,0.14504]
[1752067143901,0.48667889,109820.0,109810.0,0.004]
[1752067144783,0.50207889,109820.0,109810.0,0.004]
[1752067145279,0.55737956,109820.0,109810.0,0.004]
[1752067145503,0.97050904,109820.0,109810.0,0.004]
[1752067147050,0.91520837,109820.0,109810.0,0.004]
[1752067147262,1.0066453,109820.0,109810.0,0.004]
[1752067148783,1.28550228,109820.0,109810.0,0.004]
[1752067149021,1.0066453,109820.0,109810.0,0.004]
[1752067149887,1.0066453,109820.0,109810.0,0.002]
[1752067150099,0.018217,109780.0,109770.0,0.34872769]
[1752067150334,0.03643467,109780.0,109770.0,0.49015512]
[1752067150579,0.03643467,109780.0,109770.0,0.3491952]
[1752067150580,0.04554371,109780.0,109770.0,0.3491952]
[1752067150779,0.04554371,109780.0,109770.0,0.35830457]
[1752067151690,0.04554371,109780.0,109770.0,0.36530457]
[1752067151909,0.03552376,109780.0,109770.0,0.36530457]
[1752067152151,0.03552376,109780.0,109770.0,0.37130457]
[1752067152372,0.01821692,109780.0,109770.0,0.37130457]
[1752067152723,0.02732571,109780.0,109770.0,0.37130457]
[1752067153416,0.03643458,109780.0,109770.0,0.37130457]
[1752067153888,0.04554354,109780.0,109770.0,0.37130457]
[1752067154124,0.03643458,109780.0,109770.0,0.37130457]
[1752067154330,0.01821692,109780.0,109770.0,0.37130457]
[1752067154931,0.018217,109780.0,109770.0,0.37130457]
[1752067155546,0.00910838,109780.0,109770.0,0.37130457]
[1752067155894,0.02732563,109780.0,109770.0,0.37130457]
[1752067156462,0.02732563,109780.0,109770.0,0.35620457]
[1752067157215,0.01821692,109780.0,109770.0,0.35620457]
[1752067157364,0.00910838,109780.0,109770.0,0.35620457]
[1752067157563,0.00910838,109780.0,109770.0,0.37120457]
[1752067157564,0.01821692,109780.0,109770.0,0.37120457]
[1752067157993,0.77030723,109790.0,109780.0,0.19129158]
[1752067158200,0.77030723,109790.0,109780.0,0.29125496]
[1752067158364,0.78610723,109790.0,109780.0,0.30036375]
[1752067158776,0.60394128,109790.0,109780.0,0.30036375]
[1752067158997,0.78610723,109790.0,109780.0,0.30036383]
[1752067159199,0.50725025,109790.0,109780.0,0.29125496]
[1752067159408,0.50725025,109790.0,109780.0,0.29625496]
[1752067159728,0.50725025,109790.0,109780.0,0.29625504]
[1752067159957,0.49814237,109790.0,109780.0,0.28714592]
[1752067160146,0.51424237,109790.0,109780.0,0.28714592]
[1752067160487,0.87099532,109790.0,109780.0,0.28714592]
[1752067160712,0.78399122,109790.0,109780.0,0.29314592]
[1752067161262,0.78399122,109790.0,109780.0,0.30225504]
[1752067161512,0.32508412,109790.0,109780.0,0.32047279]
[1752067162126,0.31597583,109790.0,109780.0,0.33869004]
[1752067162347,0.30928412,109790.0,109780.0,0.3295815]
[1752067162556,0.49145007,109790.0,109780.0,0.32047279]
[1752067163011,0.49145007,109790.0,109780.0,0.32047287]
[1752067163263,0.50795007,109790.0,109780.0,0.32958166]
[1752067163486,0.31667583,109790.0,109780.0,0.32958166]
[1752067163717,0.30928338,109790.0,109780.0,0.32958166]
[1752067163951,0.17735109,109790.0,109780.0,0.3386902]
[1752067164811,0.17735167,109790.0,109780.0,0.32958166]
[1752067165033,0.18645996,109790.0,109780.0,0.33869037]
[1752067165252,0.18645996,109790.0,109780.0,0.32958166]
[1752067165453,0.18645996,109790.0,109780.0,0.33869037]
[1752067165659,0.18645996,109790.0,109780.0,0.32958166]
[1752067165867,0.17735167,109790.0,109780.0,0.32958166]
[1752067166091,0.58237084,109800.0,109790.0,0.19127408]
[1752067166338,0.39111418,109800.0,109790.0,0.30945354]
[1752067166554,0.49913369,109800.0,109790.0,0.31856125]
[1752067166765,0.50824082,109800.0,109790.0,0.33386125]
[1752067166974,0.49913369,109800.0,109790.0,0.33386125]
[1752067167181,0.49913369,109800.0,109790.0,0.33786125]
[1752067167388,0.50824074,109800.0,109790.0,0.33786125]
[1752067167821,0.34,109800.0,109790.0,0.33786125]
[1752067168030,0.34910688,109800.0,109790.0,0.33786125]
[1752067168262,0.31226967,109810.0,109800.0,0.20036387]
[1752067168497,0.71467797,109810.0,109800.0,0.20036387]
[1752067168713,0.85100276,109810.0,109800.0,0.32306936]
[1752067168927,0.85100276,109810.0,109800.0,0.33217682]
[1752067169202,0.85100276,109810.0,109800.0,0.32306936]
[1752067169422,0.85100276,109810.0,109800.0,0.14092]
[1752067169623,0.84189638,109810.0,109800.0,0.14292]
[1752067170242,0.84189638,109810.0,109800.0,0.14492]
[1752067170751,0.90752591,109810.0,109800.0,0.14492]
[1752067170949,0.84189638,109810.0,109800.0,0.004]
[1752067171148,0.84189638,109810.0,109800.0,0.14488]
[1752067172591,0.84189638,109810.0,109800.0,0.004]
[1752067172752,0.84189638,109810.0,109800.0,0.14488]
[1752067173154,0.84189638,109810.0,109800.0,0.14250285]
[1752067173371,0.84189638,109810.0,109800.0,0.00162285]
[1752067178471,0.84189638,109810.0,109800.0,0.18377221]
[1752067178675,0.84189638,109810.0,109800.0,0.00162285]
[1752067178908,0.5630394,109810.0,109800.0,0.19287959]
[1752067179143,0.00910622,109810.0,109800.0,0.20198672]
[1752067179289,0.0182126,109810.0,109800.0,0.21748672]
[1752067179493,0.03642462,109810.0,109800.0,0.21748672]
[1752067179700,0.03642462,109810.0,109800.0,0.21109377]
[1752067180106,0.04553117,109810.0,109800.0,0.20198672]
[1752067180370,0.04553117,109810.0,109800.0,0.21109377]
[1752067180545,0.03642462,109810.0,109800.0,0.20198672]
[1752067180786,0.03642462,109810.0,109800.0,0.21109377]
[1752067181156,0.56443912,109810.0,109800.0,0.18377221]
[1752067181317,0.56443912,109810.0,109800.0,0.32461221]
[1752067181318,0.58763307,109810.0,109800.0,0.32461221]
[1752067181523,0.52060898,109810.0,109800.0,0.32461221]
[1752067181931,0.241752,109810.0,109800.0,0.32461221]
[1752067182133,0.51150276,109810.0,109800.0,0.32461221]
[1752067182944,0.23264578,109810.0,109800.0,0.34282697]
[1752067183149,0.51150276,109810.0,109800.0,0.33371967]
[1752067183366,0.51150276,109810.0,109800.0,0.35193435]
[1752067183574,0.23264578,109810.0,109800.0,0.36104156]
[1752067183769,0.51150276,109810.0,109800.0,0.36104156]
[1752067183975,0.51150276,109810.0,109800.0,0.35193435]
[1752067184627,0.51150276,109810.0,109800.0,0.36104156]
[1752067185033,0.3293695,109810.0,109800.0,0.36104156]
[1752067185241,0.33847605,109810.0,109800.0,0.36104156]
[1752067185512,0.52060882,109810.0,109800.0,0.36104156]
[1752067185738,0.31296901,109810.0,109800.0,0.36104123]
[1752067185949,0.33118178,109810.0,109800.0,0.36104123]
[1752067186152,0.0523248,109810.0,109800.0,0.37014787]
[1752067186353,0.04321833,109810.0,109800.0,0.36104057]
[1752067186561,0.0523248,109810.0,109800.0,0.37014745]
[1752067186779,0.52431675,109820.0,109810.0,0.2003457]
[1752067186996,0.70643294,109820.0,109810.0,0.18213277]
[1752067187194,1.00058992,109820.0,109810.0,0.20034587]
[1752067187423,1.00058992,109820.0,109810.0,0.20034578]
[1752067187914,1.00058992,109820.0,109810.0,0.191286]
[1752067188224,1.00058992,109820.0,109810.0,0.20039247]
[1752067188638,0.66856793,109820.0,109810.0,0.20949877]
[1752067188848,0.67767365,109820.0,109810.0,0.20949877]
[1752067189528,0.66856793,109820.0,109810.0,0.20949877]
[1752067189669,0.39881667,109820.0,109810.0,0.20949877]
[1752067189869,0.38351667,109820.0,109810.0,0.20039247]
[1752067190104,0.38351667,109820.0,109810.0,0.20949877]
[1752067190329,0.39921667,109820.0,109810.0,0.21860515]
[1752067190532,0.59043866,109820.0,109810.0,0.20039247]
[1752067190702,0.59043866,109820.0,109810.0,0.20039255]
[1752067190942,0.86019025,109820.0,109810.0,0.191286]
[1752067191139,0.58133327,109820.0,109810.0,0.20039247]
[1752067191420,0.58133327,109820.0,109810.0,0.191286]
[1752067191421,0.86019025,109820.0,109810.0,0.191286]
[1752067191945,0.86019025,109820.0,109810.0,0.20039255]
[1752067192290,0.58133327,109820.0,109810.0,0.20039255]
[1752067192491,0.86019025,109820.0,109810.0,0.20949902]
[1752067192735,0.86019025,109820.0,109810.0,0.20039255]
[1752067192890,0.86019025,109820.0,109810.0,0.191286]
[1752067193092,0.86019025,109820.0,109810.0,0.20039255]
[1752067193317,0.58133327,109820.0,109810.0,0.20949902]
[1752067193518,0.86019025,109820.0,109810.0,0.20949902]
[1752067194125,0.86019025,109820.0,109810.0,0.20039255]
[1752067195373,0.86019025,109820.0,109810.0,0.191286]
[1752067195587,0.85108469,109820.0,109810.0,0.18217937]
[1752067195752,0.84197897,109820.0,109810.0,0.18217937]
[1752067196364,0.84197897,109820.0,109810.0,0.32293937]
[1752067196789,0.84197897,109820.0,109810.0,4.66e-05]
[1752067196996,0.56312199,109820.0,109810.0,0.1408066]
[1752067197157,0.84197897,109820.0,109810.0,0.1408066]
[1752067198411,0.56312199,109820.0,109810.0,0.32293937]
[1752067198604,0.84197897,109820.0,109810.0,0.32293937]
[1752067199511,0.84197897,109820.0,109810.0,4.66e-05]
[1752067199691,0.98269897,109820.0,109810.0,4.66e-05]
[1752067207335,0.70384199,109820.0,109810.0,4.66e-05]
[1752067207757,0.98269897,109820.0,109810.0,4.66e-05]
[1752067208597,0.98269897,109820.0,109810.0,0.01707219]
[1752067208807,1.0741359,109820.0,109810.0,0.01707219]
[1752067210289,0.98269897,109820.0,109810.0,0.01707219]
[1752067210501,0.70384199,109820.0,109810.0,0.01707219]
[1752067210715,0.98269897,109820.0,109810.0,0.01707219]
[1752067212397,0.98269897,109820.0,109810.0,0.01707049]
[1752067212614,0.70384199,109820.0,109810.0,0.19920326]
[1752067212802,0.98269897,109820.0,109810.0,0.19920326]
[1752067213081,0.98269897,109820.0,109810.0,0.01707049]
[1752067214110,0.70384199,109820.0,109810.0,0.01707049]
[1752067214314,0.98269897,109820.0,109810.0,0.19920326]
[1752067214791,0.98265897,109820.0,109810.0,0.20830989]
[1752067215002,0.54742175,109820.0,109810.0,0.21741644]
[1752067215232,0.68100747,109820.0,109810.0,0.21741644]
[1752067215473,0.34910531,109820.0,109810.0,0.21741644]
[1752067215681,0.54943269,109820.0,109810.0,0.21741644]
[1752067216111,0.69011269,109820.0,109810.0,0.22652291]
[1752067216776,0.69011269,109820.0,109810.0,0.23562929]
[1752067217247,0.69011269,109820.0,109810.0,0.22652291]
[1752067217687,0.69011269,109820.0,109810.0,0.2186054]
[1752067217862,0.95075889,109820.0,109810.0,0.18217937]
[1752067218175,0.98285889,109820.0,109810.0,4.66e-05]
[1752067218373,1.07429582,109820.0,109810.0,4.66e-05]
[1752067218621,0.98285889,109820.0,109810.0,4.66e-05]
[1752067219465,0.98285889,109820.0,109810.0,0.18217937]
[1752067219636,0.98285889,109820.0,109810.0,0.19920232]
[1752067219838,0.98285889,109820.0,109810.0,0.01706955]
[1752067220923,0.98285889,109820.0,109810.0,4.66e-05]
[1752067222975,1.07429582,109820.0,109810.0,4.66e-05]
[1752067223115,0.98285889,109820.0,109810.0,4.66e-05]
[1752067224490,0.98285889,109820.0,109810.0,0.18217937]
[1752067225077,0.98285889,109820.0,109810.0,4.66e-05]
[1752067226061,0.70400191,109820.0,109810.0,4.66e-05]
[1752067226278,0.98285889,109820.0,109810.0,4.66e-05]
[1752067226885,1.04229685,109820.0,109810.0,4.66e-05]
[1752067227132,1.04221685,109820.0,109810.0,4.66e-05]
[1752067227472,0.98277889,109820.0,109810.0,4.66e-05]
[1752067228215,0.84217889,109820.0,109810.0,4.66e-05]
[1752067228376,0.70392191,109820.0,109810.0,4.66e-05]
[1752067228753,0.98277889,109820.0,109810.0,4.66e-05]
[1752067229144,0.84217889,109820.0,109810.0,4.66e-05]
[1752067229344,0.98277889,109820.0,109810.0,4.66e-05]
[1752067229684,1.01285508,109820.0,109810.0,4.66e-05]
[1752067229907,0.98277889,109820.0,109810.0,4.66e-05]
[1752067230525,0.84217889,109820.0,109810.0,4.66e-05]
[1752067230818,0.81007889,109820.0,109810.0,0.191286]
[1752067231016,0.94157317,109820.0,109810.0,0.18217937]
[1752067231152,0.80097317,109820.0,109810.0,4.66e-05]
[1752067231371,0.95667317,109820.0,109810.0,4.66e-05]
[1752067231575,0.97277317,109820.0,109810.0,4.66e-05]
[1752067231806,0.83217317,109820.0,109810.0,4.66e-05]
[1752067232008,0.97273317,109820.0,109810.0,4.66e-05]
[1752067232209,0.83217317,109820.0,109810.0,4.66e-05]
[1752067232819,0.52211619,109820.0,109810.0,0.18217937]
[1752067233022,0.9415987,109820.0,109810.0,4.66e-05]
[1752067233450,0.9576987,109820.0,109810.0,4.66e-05]
[1752067235933,0.9736987,109820.0,109810.0,4.66e-05]
[1752067236555,0.9576987,109820.0,109810.0,4.66e-05]
[1752067237069,0.9576987,109820.0,109810.0,0.18217937]
[1752067237741,0.9733987,109820.0,109810.0,4.66e-05]
[1752067237975,1.25232121,109820.0,109810.0,4.66e-05]
[1752067243371,0.69447619,109820.0,109810.0,4.66e-05]
[1752067243594,1.25232121,109820.0,109810.0,4.66e-05]
[1752067251923,1.25224121,109820.0,109810.0,4.66e-05]
[1752067252125,1.34367814,109820.0,109810.0,4.66e-05]
[1752067252693,1.25224121,109820.0,109810.0,4.66e-05]
[1752067258001,1.62260065,109820.0,109810.0,4.66e-05]
[1752067258333,0.57136371,109800.0,109790.0,0.05433004]
[1752067258534,1.36108566,109800.0,109790.0,0.00046743]
[1752067260829,1.36150548,109800.0,109790.0,0.00046743]
[1752067261031,1.45294241,109800.0,109790.0,0.00046743]
[1752067261284,1.45394241,109800.0,109790.0,0.00046743]
[1752067261500,1.36250548,109800.0,109790.0,0.00046743]
[1752067267953,1.38987948,109800.0,109790.0,0.00046743]
[1752067268177,0.83161464,109800.0,109790.0,0.00046743]
[1752067268393,0.80424064,109800.0,109790.0,0.00046743]
[1752067268614,1.08337306,109800.0,109790.0,0.00046743]
[1752067268837,1.36250548,109800.0,109790.0,0.00046743]
[1752067269260,0.80424064,109800.0,109790.0,0.00046743]
[1752067269552,1.08337306,109800.0,109790.0,0.00046743]
[1752067270234,1.08437306,109800.0,109790.0,0.00046743]
[1752067270465,0.80524064,109800.0,109790.0,0.00046743]
[1752067270666,1.08437306,109800.0,109790.0,0.00046743]
[1752067270993,1.08433306,109800.0,109790.0,0.00046743]
[1752067272878,1.17576999,109800.0,109790.0,0.00046743]
[1752067273068,1.08433306,109800.0,109790.0,0.00046743]
[1752067274630,1.08429306,109800.0,109790.0,0.00046743]
[1752067274823,1.06879306,109800.0,109790.0,0.00046743]
[1752067275237,1.08409306,109800.0,109790.0,0.00046743]
[1752067276681,1.45466241,109800.0,109790.0,0.00046743]
[1752067278222,1.45466241,109800.0,109790.0,0.00046743]
[1752067278857,1.46920326,109800.0,109790.0,0.00046743]
[1752067279275,1.49657926,109800.0,109790.0,0.00046743]
[1752067279922,1.77571168,109800.0,109790.0,0.00046743]
[1752067280146,0.48867975,109760.0,109750.0,0.0057187]
[1752067280357,0.8666864,109760.0,109750.0,0.10568208]
[1752067280847,1.14612476,109760.0,109750.0,0.10568208]
[1752067281557,1.14612476,109760.0,109750.0,0.11172868]
[1752067281772,1.16192476,109760.0,109750.0,0.10572868]
[1752067282048,1.16192476,109760.0,109750.0,0.10972868]
[1752067282260,1.17083354,109760.0,109750.0,0.10972868]
[1752067282487,1.51083354,109760.0,109750.0,0.10972868]
[1752067282728,1.51083354,109760.0,109750.0,0.11472868]
[1752067282955,1.23155395,109760.0,109750.0,0.11472868]
[1752067283208,1.12431702,109760.0,109750.0,0.10972868]
[1752067283388,1.12431702,109760.0,109750.0,0.11272868]
[1752067283538,1.13931702,109760.0,109750.0,0.11272868]
[1752067286095,1.13931702,109760.0,109750.0,0.11264288]
[1752067286322,1.20010729,109760.0,109750.0,0.11264288]
[1752067288634,1.13931702,109760.0,109750.0,0.11264288]
[1752067289260,1.12431702,109760.0,109750.0,0.29487522]
[1752067289459,1.10931702,109760.0,109750.0,0.11264288]
[1752067289828,1.10040824,109760.0,109750.0,0.11264288]